fUSD/lending_fUSD_20241207
["ID","MTS","AMOUNT","RATE_DAILY","PERIOD"]
[344551623,1733542245117,-804.98,0.00011396,2]
[344551624,1733542245127,-1212.28,0.00011396,2]
[344551625,1733542245137,-500.0,0.00011396,2]
[344551626,1733542245147,-500.0,0.00011396,2]
[344551627,1733542245157,-1407.91,0.00011396,2]
[344551628,1733542245166,-3735.72,0.00011396,2]
[344551629,1733542245178,-500.0,0.00011396,2]
[344551630,1733542245188,-500.0,0.00011396,2]
[344551631,1733542245198,-798.94,0.00011396,2]
[344551632,1733542245208,-941.87,0.00011396,2]
[344551633,1733542245218,-1139.5,0.00011396,2]
[344551634,1733542245228,-500.0,0.00011396,2]
[344551635,1733542245238,-500.0,0.00011396,2]
[344551636,1733542245247,-500.0,0.00011396,2]
[344551637,1733542245257,-500.0,0.00011396,2]
[344551638,1733542245266,-500.0,0.00011396,2]
[344551639,1733542245275,-500.0,0.00011396,2]
[344551640,1733542245285,-900.36,0.00011396,2]
[344551641,1733542245295,-500.0,0.00011396,2]
[344551642,1733542245305,-500.0,0.00011396,2]
[344551643,1733542245315,-1135.81,0.00011396,2]
[344551644,1733542245325,-547.62,0.00011396,2]
[344551645,1733542245341,-3949.14,0.00011396,2]
[344551646,1733542245353,-696.55,0.00011396,2]
[344551647,1733542245362,-534.99,0.00011396,2]
[344551648,1733542245372,-500.0,0.00011396,2]
[344551649,1733542245382,-563.35701029,0.00011396,2]
[344551650,1733542245391,-2029.75,0.00011396,2]
[344551651,1733542245401,-500.0,0.00011396,2]
[344551652,1733542245410,-500.0,0.00011396,2]
[344551653,1733542245420,-500.0,0.00011396,2]
[344551654,1733542245429,-722.63,0.00011396,2]
[344551655,1733542245439,-500.0,0.00011396,2]
[344551656,1733542245448,-500.0,0.00011396,2]
[344551657,1733542245457,-592.7,0.00011396,2]
[344551658,1733542245467,-743.55,0.00011396,2]
[344551659,1733542245476,-2669.49,0.00011396,2]
[344551660,1733542245486,-500.0,0.00011396,2]
[344551661,1733542245495,-500.0,0.00011396,2]
[344551662,1733542245505,-500.0,0.00011396,2]
[344551663,1733542245515,-500.0,0.00011396,2]
[344551664,1733542245525,-500.0,0.00011396,2]
[344551665,1733542245535,-500.0,0.00011396,2]
[344551666,1733542245544,-500.0,0.00011396,2]
[344551667,1733542245553,-795.96,0.00011396,2]
[344551668,1733542245564,-502.51,0.00011396,2]
[344551669,1733542245574,-589.92,0.00011396,2]
[344551670,1733542245587,-500.0,0.00011396,2]
[344551671,1733542245597,-500.0,0.00011396,2]
[344551672,1733542245606,-604.87,0.00011396,2]
[344551673,1733542245615,-500.0,0.00011396,2]
[344551674,1733542245624,-500.0,0.00011396,2]
[344551675,1733542245634,-500.0,0.00011396,2]
[344551676,1733542245644,-500.0,0.00011396,2]
[344551677,1733542245655,-500.0,0.00011396,2]
[344551678,1733542245664,-500.0,0.00011396,2]
[344551679,1733542245674,-619.12,0.00011396,2]
[344551680,1733542245684,-237.1525138,0.00011396,2]
[344551681,1733542245694,-500.0,0.00011396,2]
[344551682,1733542245704,-500.0,0.00011396,2]
[344551683,1733542245714,-36964.5683,0.00011398,2]
[344551684,1733542245725,-1000.0,0.00011398,2]
[344551685,1733542245736,-500.0,0.00011495,2]
[344551686,1733542245745,-500.0,0.00011495,2]
[344551687,1733542245755,-500.0,0.00011495,2]
[344551688,1733542245767,-500.0,0.00011495,2]
[344551689,1733542245778,-587.04049128,0.00011495,2]
[344551690,1733542245788,-500.0,0.00011495,2]
[344551691,1733542245798,-191.53945016,0.00011495,2]
[344551692,1733542245808,-500.0,0.00011495,2]
[344551693,1733542245819,-500.0,0.00011495,2]
[344551694,1733542245827,-500.0,0.00011495,2]
[344551695,1733542245839,-500.0,0.00011495,2]
[344551696,1733542245849,-500.0,0.00011495,2]
[344551697,1733542245859,-446.91310014,0.00011495,2]
[344551698,1733542245870,-500.0,0.00011495,2]
[344551699,1733542245879,-500.0,0.00011495,2]
[344551700,1733542245889,-500.0,0.00011495,2]
[344551701,1733542245898,-500.0,0.00011495,2]
[344551702,1733542245908,-500.0,0.00011495,2]
[344551703,1733542245918,-500.0,0.00011495,2]
[344551704,1733542245935,-500.0,0.00011495,2]
[344551705,1733542245945,-500.0,0.00011495,2]
[344551706,1733542245955,-500.0,0.00011495,2]
[344551707,1733542245965,-500.0,0.00011495,2]
[344551708,1733542245974,-500.0,0.00011495,2]
[344551709,1733542245983,-538.08451401,0.00011495,2]
[344551710,1733542245996,-500.0,0.00011495,2]
[344551711,1733542246006,-500.0,0.00011495,2]
[344551712,1733542246016,-500.0,0.00011495,2]
[344551713,1733542246026,-500.0,0.00011495,2]
[344551714,1733542246038,-500.0,0.00011495,2]
[344551715,1733542246049,-500.0,0.00011495,2]
[344551716,1733542246059,-500.0,0.00011495,2]
[344551717,1733542246072,-500.0,0.00011495,2]
[344551718,1733542246085,-500.0,0.00011495,2]
[344551719,1733542246095,-500.0,0.00011495,2]
[344551720,1733542246105,-500.0,0.00011495,2]
[344551721,1733542246115,-500.0,0.00011495,2]
[344551722,1733542246125,-500.0,0.00011495,2]
[344551723,1733542246135,-500.0,0.00011495,2]
[344551724,1733542246145,-500.0,0.00011495,2]
[344551725,1733542246155,-500.0,0.00011495,2]
[344551726,1733542246165,-630.15969881,0.00011495,2]
[344551727,1733542246175,-500.0,0.00011495,2]
[344551728,1733542246184,-500.0,0.00011495,2]
[344551730,1733542246194,-500.0,0.00011495,2]
[344551732,1733542246203,-500.0,0.00011495,2]
[344551734,1733542246213,-500.0,0.00011495,2]
[344551736,1733542246223,-500.0,0.00011495,2]
[344551738,1733542246232,-500.0,0.00011495,2]
[344551740,1733542246242,-500.0,0.00011495,2]
[344551742,1733542246252,-500.0,0.00011495,2]
[344551744,1733542246262,-500.0,0.00011495,2]
[344551746,1733542246272,-375.57941393,0.00011495,2]
[344551748,1733542246281,-500.0,0.00011495,2]
[344551750,1733542246290,-500.0,0.00011495,2]
[344551752,1733542246300,-500.0,0.00011495,2]
[344551754,1733542246309,-500.0,0.00011495,2]
[344551756,1733542246318,-500.0,0.00011495,2]
[344551758,1733542246328,-500.0,0.00011495,2]
[344551759,1733542246339,-500.0,0.00011495,2]
[344551760,1733542246348,-500.0,0.00011495,2]
[344551761,1733542246357,-500.0,0.00011495,2]
[344551762,1733542246367,-500.0,0.00011495,2]
[344551763,1733542246376,-500.0,0.00011495,2]
[344551764,1733542246386,-726.02,0.00011495,2]
[344551765,1733542246396,-500.0,0.00011495,2]
[344551766,1733542246406,-500.0,0.00011495,2]
[344551767,1733542246415,-500.0,0.00011495,2]
[344551768,1733542246425,-500.0,0.00011495,2]
[344551769,1733542246435,-500.0,0.00011495,2]
[344551770,1733542246445,-500.0,0.00011495,2]
[344551771,1733542246455,-500.0,0.00011495,2]
[344551772,1733542246465,-500.0,0.00011495,2]
[344551773,1733542246474,-500.0,0.00011495,2]
[344551774,1733542246483,-500.0,0.00011495,2]
[344551775,1733542246493,-500.0,0.00011495,2]
[344551776,1733542246503,-500.0,0.00011495,2]
[344551777,1733542246512,-500.0,0.00011495,2]
[344551778,1733542246521,-500.0,0.00011495,2]
[344551779,1733542246530,-511.92946609,0.00011495,2]
[344551780,1733542246540,-500.0,0.00011495,2]
[344551781,1733542246549,-500.0,0.00011495,2]
[344551782,1733542246558,-500.0,0.00011495,2]
[344551783,1733542246567,-500.0,0.00011495,2]
[344551784,1733542246577,-500.0,0.00011495,2]
[344551785,1733542246591,-500.0,0.00011495,2]
[344551786,1733542246600,-500.0,0.00011495,2]
[344551787,1733542246610,-500.0,0.00011495,2]
[344551788,1733542246619,-500.0,0.00011495,2]
[344551789,1733542246628,-500.0,0.00011497,2]
[344551790,1733542246637,-2751.0,0.00011507,2]
[344551791,1733542246647,-386.0,0.00011535,2]
[344551792,1733542246656,-153.81,0.00011658,2]
[344551793,1733542246665,-500.0,0.00011668,2]
[344551794,1733542246674,-500.0,0.00011668,2]
[344551795,1733542246683,-500.0,0.00011668,2]
[344551796,1733542246692,-500.0,0.00011668,2]
[344551797,1733542246702,-500.0,0.00011668,2]
[344551798,1733542246711,-500.0,0.00011668,2]
[344551799,1733542246721,-500.0,0.00011668,2]
[344551800,1733542246730,-500.0,0.00011668,2]
[344551801,1733542246739,-500.0,0.00011668,2]
[344551802,1733542246749,-952.9,0.00011669,2]
[344551803,1733542246759,-527.25,0.00011669,2]
[344551804,1733542246768,-500.0,0.00011669,2]
[344551805,1733542246778,-2238.2,0.00011669,2]
[344551806,1733542246787,-500.0,0.00011669,2]
[344551807,1733542246799,-500.0,0.00011669,2]
[344551808,1733542246808,-799.6,0.00011669,2]
[344551809,1733542246818,-975.2,0.00011669,2]
[344551810,1733542246827,-500.0,0.00011669,2]
[344551811,1733542246839,-500.0,0.00011669,2]
[344551812,1733542246849,-507.82,0.00011669,2]
[344551813,1733542246860,-823.68,0.00011669,2]
[344551814,1733542246870,-500.0,0.00011669,2]
[344551815,1733542246879,-1530.56,0.00011669,2]
[344551816,1733542246889,-2551.88,0.00011669,2]
[344551817,1733542246899,-500.0,0.00011669,2]
[344551818,1733542246909,-793.51,0.00011669,2]
[344551819,1733542246918,-500.0,0.00011669,2]
[344551820,1733542246928,-500.0,0.00011669,2]
[344551821,1733542246937,-885.01,0.00011669,2]
[344551822,1733542246947,-2966.37,0.00011669,2]
[344551823,1733542246957,-5655.0,0.00011669,2]
[344551824,1733542246967,-500.0,0.00011669,2]
[344551825,1733542246976,-537.67,0.00011669,2]
[344551826,1733542246986,-765.09,0.00011669,2]
[344551827,1733542247000,-500.0,0.00011669,2]
[344551828,1733542247009,-560.09,0.00011669,2]
[344551829,1733542247019,-939.11,0.00011669,2]
[344551830,1733542247028,-500.0,0.00011669,2]
[344551831,1733542247039,-5212.83,0.00011669,2]
[344551832,1733542247049,-1623.84,0.00011669,2]
[344551833,1733542247059,-1610.07,0.00011669,2]
[344551834,1733542247070,-500.0,0.00011669,2]
[344551835,1733542247079,-500.0,0.00011669,2]
[344551836,1733542247090,-500.0,0.00011669,2]
[344551837,1733542247099,-649.27,0.00011669,2]
[344551838,1733542247108,-762.7,0.00011669,2]
[344551839,1733542247118,-556.11,0.00011669,2]
[344551840,1733542247127,-521.78,0.00011669,2]
[344551841,1733542247136,-1429.28,0.00011669,2]
[344551842,1733542247145,-4106.05,0.00011669,2]
[344551843,1733542247155,-500.0,0.00011669,2]
[344551844,1733542247166,-500.0,0.00011669,2]
[344551845,1733542247175,-500.0,0.00011669,2]
[344551846,1733542247185,-500.0,0.00011669,2]
[344551847,1733542247195,-500.0,0.00011669,2]
[344551848,1733542247204,-500.0,0.00011669,2]
[344551849,1733542247214,-741.8,0.00011669,2]
[344551850,1733542247224,-2325.13,0.00011669,2]
[344551851,1733542247233,-500.0,0.00011669,2]
[344551852,1733542247242,-500.0,0.00011669,2]
[344551853,1733542247252,-500.0,0.00011669,2]
[344551854,1733542247261,-2996.47,0.00011669,2]
[344551855,1733542247271,-566.14,0.00011669,2]
[344551856,1733542247280,-500.0,0.00011669,2]
[344551857,1733542247289,-541.71,0.00011669,2]
[344551858,1733542247299,-500.0,0.00011669,2]
[344551859,1733542247308,-1338.89,0.00011669,2]
[344551860,1733542247317,-665.94,0.00011669,2]
[344551861,1733542247327,-4967.05,0.00011669,2]
[344551862,1733542247338,-977.62,0.00011669,2]
[344551863,1733542247349,-157.0,0.0001167,2]
[344551864,1733542247358,-290.04,0.0001167,2]
[344551865,1733542247368,-228.64,0.0001167,2]
[344551866,1733542247377,-493.22,0.0001167,2]
[344551867,1733542247387,-500.0,0.0001167,2]
[344551868,1733542247397,-274.68,0.0001167,2]
[344551869,1733542247406,-500.0,0.0001167,2]
[344551870,1733542247416,-500.0,0.0001167,2]
[344551871,1733542247425,-201.93,0.0001167,2]
[344551872,1733542247434,-500.0,0.0001167,2]
[344551873,1733542247445,-644.35,0.0001167,2]
[344551874,1733542247454,-320.68,0.0001167,2]
[344551875,1733542247463,-523.74,0.0001167,2]
[344551876,1733542247472,-1764.63,0.0001167,2]
[344551877,1733542247482,-570.93,0.0001167,2]
[344551878,1733542247492,-500.0,0.0001167,2]
[344551879,1733542247501,-500.0,0.0001167,2]
[344551880,1733542247511,-500.0,0.0001167,2]
[344551881,1733542247520,-500.0,0.0001167,2]
[344551882,1733542247530,-500.0,0.0001167,2]
[344551883,1733542247539,-500.0,0.0001167,2]
[344551884,1733542247549,-500.0,0.0001167,2]
[344551885,1733542247559,-732.91,0.0001167,2]
[344551886,1733542247568,-2130.76,0.0001167,2]
[344551887,1733542247577,-362.26,0.0001167,2]
[344551888,1733542247588,-940.25,0.0001167,2]
[344551889,1733542247598,-500.0,0.0001167,2]
[344551890,1733542247607,-500.0,0.0001167,2]
[344551891,1733542247616,-533.48,0.0001167,2]
[344551892,1733542247625,-500.0,0.0001167,2]
[344551893,1733542247635,-500.0,0.0001167,2]
[344551894,1733542247644,-884.72,0.0001167,2]
[344551895,1733542247655,-500.0,0.0001167,2]
[344551896,1733542247664,-500.0,0.0001167,2]
[344551897,1733542247674,-804.98,0.0001167,2]
[344551898,1733542247683,-1212.28,0.0001167,2]
[344551899,1733542247692,-500.0,0.0001167,2]
[344551900,1733542247702,-500.0,0.0001167,2]
[344551901,1733542247711,-1407.91,0.0001167,2]
[344551902,1733542247720,-3735.72,0.0001167,2]
[344551903,1733542247730,-500.0,0.0001167,2]
[344551904,1733542247739,-798.94,0.0001167,2]
[344551905,1733542247748,-941.87,0.0001167,2]
[344551906,1733542247758,-1139.5,0.0001167,2]
[344551907,1733542247767,-500.0,0.0001167,2]
[344551908,1733542247776,-500.0,0.0001167,2]
[344551909,1733542247786,-500.0,0.0001167,2]
[344551910,1733542247795,-500.0,0.0001167,2]
[344551911,1733542247804,-500.0,0.0001167,2]
[344551912,1733542247814,-500.0,0.0001167,2]
[344551913,1733542247823,-900.36,0.0001167,2]
[344551914,1733542247833,-500.0,0.0001167,2]
[344551915,1733542247842,-500.0,0.0001167,2]
[344551916,1733542247851,-1135.81,0.0001167,2]
[344551917,1733542247863,-547.62,0.0001167,2]
[344551918,1733542247872,-3949.14,0.0001167,2]
[344551919,1733542247882,-696.55,0.0001167,2]
[344551920,1733542247891,-534.99,0.0001167,2]
[344551921,1733542247900,-500.0,0.0001167,2]
[344551922,1733542247909,-2029.75,0.0001167,2]
[344551923,1733542247918,-500.0,0.0001167,2]
[344551924,1733542247927,-500.0,0.0001167,2]
[344551925,1733542247937,-500.0,0.0001167,2]
[344551926,1733542247946,-722.63,0.0001167,2]
[344551927,1733542247955,-500.0,0.0001167,2]
[344551928,1733542247965,-500.99426208,0.0001167,2]
[344551929,1733542247974,-592.7,0.0001167,2]
[344551930,1733542247983,-743.55,0.0001167,2]
[344551931,1733542247997,-2669.49,0.0001167,2]
[344551932,1733542248006,-500.0,0.0001167,2]
[344551933,1733542248015,-500.0,0.0001167,2]
[344551934,1733542248025,-500.0,0.0001167,2]
[344551935,1733542248035,-500.0,0.0001167,2]
[344551936,1733542248044,-500.0,0.0001167,2]
[344551937,1733542248053,-500.0,0.0001167,2]
[344551938,1733542248063,-795.96,0.0001167,2]
[344551939,1733542248075,-502.51,0.0001167,2]
[344551940,1733542248086,-589.92,0.0001167,2]
[344551941,1733542248096,-500.0,0.0001167,2]
[344551942,1733542248106,-500.0,0.0001167,2]
[344551943,1733542248116,-604.87,0.0001167,2]
[344551944,1733542248126,-500.0,0.0001167,2]
[344551945,1733542248136,-500.0,0.0001167,2]
[344551946,1733542248146,-500.0,0.0001167,2]
[344551947,1733542248156,-500.0,0.0001167,2]
[344551948,1733542248166,-500.0,0.0001167,2]
[344551949,1733542248175,-619.12,0.0001167,2]
[344551950,1733542248185,-516.98399795,0.0001167,2]
[344551951,1733542248195,-500.0,0.0001167,2]
[344551952,1733542248204,-1000.0,0.00011719,2]
[344551953,1733542248215,-500.0,0.00011769,2]
[344551954,1733542248225,-500.0,0.00011769,2]
[344551955,1733542248234,-324.3252361,0.00011769,2]
[344551956,1733542248244,-502.0300824,0.00011769,2]
[344551957,1733542248253,-504.447763,0.00011769,2]
[344551958,1733542248263,-500.0,0.00011769,2]
[344551959,1733542248273,-500.0,0.00011769,2]
[344551960,1733542248282,-500.0,0.00011769,2]
[344551961,1733542248292,-500.0,0.00011769,2]
[344551962,1733542248302,-500.0,0.00011769,2]
[344551963,1733542248312,-500.28328477,0.00011769,2]
[344551964,1733542248322,-500.0,0.00011769,2]
[344551965,1733542248334,-500.0,0.00011769,2]
[344551966,1733542248343,-513.53315473,0.00011769,2]
[344551967,1733542248354,-500.0,0.00011769,2]
[344551968,1733542248364,-500.0,0.00011769,2]
[344551969,1733542248374,-500.0,0.00011769,2]
[344551970,1733542248384,-500.23393043,0.00011769,2]
[344551971,1733542248394,-500.0,0.00011769,2]
[344551972,1733542248404,-500.0,0.00011769,2]
[344551973,1733542248413,-508.53732672,0.00011769,2]
[344551974,1733542248423,-500.0,0.00011769,2]
[344551975,1733542248432,-500.0,0.00011769,2]
[344551976,1733542248643,-500.0,0.00011769,2]
[344551977,1733542248654,-500.0,0.00011769,2]
[344551978,1733542248666,-500.0,0.00011769,2]
[344551979,1733542248676,-500.0,0.00011769,2]
[344551980,1733542248686,-500.0,0.00011769,2]
[344551981,1733542248696,-500.0,0.00011769,2]
[344551982,1733542248706,-500.0,0.00011769,2]
[344551983,1733542248716,-500.0,0.00011769,2]
[344551984,1733542248726,-500.0,0.00011769,2]
[344551985,1733542248735,-500.0,0.00011769,2]
[344551986,1733542248745,-500.0,0.00011769,2]
[344551987,1733542248755,-500.0,0.00011769,2]
[344551988,1733542248765,-500.0,0.00011769,2]
[344551989,1733542248774,-500.0,0.00011769,2]
[344551990,1733542248783,-500.0,0.00011769,2]
[344551991,1733542248793,-500.0,0.00011769,2]
[344551992,1733542248802,-500.0,0.00011769,2]
[344551993,1733542248812,-500.0,0.00011769,2]
[344551994,1733542248821,-500.0,0.00011769,2]
[344551995,1733542248831,-503.49450948,0.00011769,2]
[344551996,1733542248846,-500.0,0.00011769,2]
[344551997,1733542248856,-500.0,0.00011769,2]
[344551998,1733542248867,-500.0,0.00011769,2]
[344551999,1733542248876,-500.0,0.00011769,2]
[344552000,1733542248886,-500.0,0.00011769,2]
[344552001,1733542248896,-500.0,0.00011769,2]
[344552002,1733542248905,-500.0,0.00011769,2]
[344552003,1733542248915,-500.0,0.00011769,2]
[344552004,1733542248925,-500.0,0.00011769,2]
[344552005,1733542248934,-252.16222586,0.00011769,2]
[344552006,1733542248944,-500.0,0.00011769,2]
[344552007,1733542248953,-500.0,0.00011769,2]
[344552008,1733542248962,-500.0,0.00011769,2]
[344552009,1733542248972,-500.0,0.00011769,2]
[344552010,1733542248981,-726.02,0.00011769,2]
[344552011,1733542248992,-500.0,0.00011769,2]
[344552012,1733542249003,-500.0,0.00011769,2]
[344552013,1733542249012,-500.0,0.00011769,2]
[344552014,1733542249021,-500.0,0.00011769,2]
[344552015,1733542249030,-500.0,0.00011769,2]
[344552016,1733542249041,-500.0,0.00011769,2]
[344552017,1733542249050,-500.0,0.00011769,2]
[344552018,1733542249059,-500.0,0.00011769,2]
[344552019,1733542249070,-500.0,0.00011769,2]
[344552020,1733542249079,-500.0,0.00011769,2]
[344552021,1733542249092,-500.0,0.00011769,2]
[344552022,1733542249102,-500.0,0.00011769,2]
[344552023,1733542249111,-500.0,0.00011769,2]
[344552024,1733542249121,-500.0,0.00011769,2]
[344552025,1733542249130,-500.0,0.00011769,2]
[344552026,1733542249140,-433.96685628,0.00011769,2]
[344552027,1733542249149,-500.0,0.00011769,2]
[344552028,1733542249160,-500.0,0.00011769,2]
[344552029,1733542249169,-500.0,0.00011769,2]
[344552030,1733542249179,-500.0,0.00011769,2]
[344552031,1733542249188,-500.0,0.00011769,2]
[344552032,1733542249197,-500.0,0.00011769,2]
[344552033,1733542249207,-500.0,0.00011769,2]
[344552034,1733542249216,-500.0,0.00011771,2]
[344552035,1733542249225,-15488.25676591,0.00011888,2]
[344552036,1733542249235,-600.0,0.000119,4]
[344552037,1733542249245,-502.08188699,0.00011921,2]
[344552038,1733542249254,-500.0,0.00011942,2]
[344552039,1733542249263,-497.18,0.00011942,2]
[344552040,1733542249273,-500.0,0.00011942,2]
[344552041,1733542249283,-500.0,0.00011942,2]
[344552042,1733542249293,-506.32144487,0.00011942,2]
[344552043,1733542249303,-500.0,0.00011942,2]
[344552044,1733542249312,-500.0,0.00011942,2]
[344552045,1733542249322,-500.0,0.00011942,2]
[344552046,1733542249331,-500.0,0.00011942,2]
[344552047,1733542249342,-952.9,0.00011943,2]
[344552048,1733542249352,-527.25,0.00011943,2]
[344552049,1733542249362,-165.3513105,0.00011943,2]
[344552050,1733542249373,-2238.2,0.00011943,2]
[344552051,1733542249382,-209.70219214,0.00011943,2]
[344552052,1733542249392,-500.0,0.00011943,2]
[344552053,1733542249401,-799.6,0.00011943,2]
[344552054,1733542249411,-975.2,0.00011943,2]
[344552055,1733542249420,-500.0,0.00011943,2]
[344552056,1733542249430,-500.0,0.00011943,2]
[344552057,1733542249439,-507.82,0.00011943,2]
[344552058,1733542249449,-823.68,0.00011943,2]
[344552059,1733542249458,-500.0,0.00011943,2]
[344552060,1733542249468,-1530.56,0.00011943,2]
[344552061,1733542249478,-500.0,0.00011943,2]
[344552062,1733542249488,-2551.88,0.00011943,2]
[344552063,1733542249498,-793.51,0.00011943,2]
[344552064,1733542249508,-500.0,0.00011943,2]
[344552065,1733542249517,-500.0,0.00011943,2]
[344552066,1733542249527,-885.01,0.00011943,2]
[344552067,1733542249537,-2966.37,0.00011943,2]
[344552068,1733542249547,-5655.0,0.00011943,2]
[344552069,1733542249556,-500.0,0.00011943,2]
[344552070,1733542249566,-537.67,0.00011943,2]
[344552071,1733542249575,-765.09,0.00011943,2]
[344552072,1733542249587,-500.0,0.00011943,2]
[344552073,1733542249596,-560.09,0.00011943,2]
[344552074,1733542249605,-939.11,0.00011943,2]
[344552075,1733542249615,-500.0,0.00011943,2]
[344552076,1733542249624,-3573.35020659,0.00011943,2]
[344552077,1733542249920,-288.3200005,0.00011943,2]
[344552078,1733542249932,-1351.15979291,0.00011943,2]
[344552079,1733542249942,-1623.84,0.00011943,2]
[344552080,1733542249951,-1065.24760942,0.00011943,2]
[344552081,1733542250008,-544.82239058,0.00011943,2]
[344552082,1733542250017,-500.0,0.00011943,2]
[344552083,1733542250027,-500.0,0.00011943,2]
[344552084,1733542250038,-500.0,0.00011943,2]
[344552085,1733542250047,-649.27,0.00011943,2]
[344552086,1733542250057,-394.45732139,0.00011943,2]
[344552087,1733542250117,-208.744092,0.00011395,2]
[344552088,1733542250127,-277.406272,0.00011943,2]
[344552089,1733542250139,-90.83640661,0.00011943,2]
[344552090,1733542250149,-556.11,0.00011943,2]
[344552091,1733542250158,-290.32438139,0.00011943,2]
[344552092,1733542250170,-231.45561861,0.00011943,2]
[344552093,1733542250179,-1429.28,0.00011943,2]
[344552094,1733542250189,-4106.05,0.00011943,2]
[344552095,1733542250199,-500.0,0.00011943,2]
[344552096,1733542250209,-500.0,0.00011943,2]
[344552097,1733542250219,-500.0,0.00011943,2]
[344552098,1733542250228,-500.0,0.00011943,2]
[344552099,1733542250238,-360.21438139,0.00011943,2]
[344552100,1733542250274,-139.78561861,0.00011943,2]
[344552101,1733542250283,-500.0,0.00011943,2]
[344552102,1733542250294,-741.8,0.00011943,2]
[344552103,1733542250304,-2091.80322139,0.00011943,2]
[344552104,1733542250656,-500.0,0.00011394,2]
[344552105,1733542250666,-440.6410723,0.00011394,2]
[344552106,1733542250675,-500.0,0.00011396,2]
[344552107,1733542250685,-500.0,0.00011668,2]
[344552108,1733542250694,-0.8789237,0.00011942,2]
[344552109,1733542250708,-499.1210763,0.00011942,2]
[344552110,1733542250727,-233.32677861,0.00011943,2]
[344552111,1733542250753,-500.0,0.00011943,2]
[344552112,1733542250762,-500.0,0.00011943,2]
[344552113,1733542250773,-317.43454453,0.00011943,2]
[344552114,1733542250782,-2996.47,0.00011943,2]
[344552115,1733542250792,-566.14,0.00011943,2]
[344552116,1733542250802,-500.0,0.00011943,2]
[344552117,1733542250812,-500.0,0.00011943,2]
[344552118,1733542250821,-1338.89,0.00011943,2]
[344552119,1733542250831,-665.94,0.00011943,2]
[344552120,1733542250842,-4967.05,0.00011943,2]
[344552121,1733542250851,-977.62,0.00011943,2]
[344552122,1733542250861,-318.28,0.00011944,2]
[344552123,1733542250871,-500.0,0.00011944,2]
[344552124,1733542250944,-242.19541106,0.00011944,2]
[344552125,1733542250954,-243.41,0.00011944,2]
[344552126,1733542250964,-1764.63,0.00011944,2]
[344552127,1733542250974,-570.93,0.00011944,2]
[344552128,1733542250984,-611.60005941,0.00011944,2]
[344552129,1733542250998,-500.0,0.00011944,2]
[344552130,1733542251008,-106.71113009,0.00011944,2]
[344552131,1733542251021,-207.83886991,0.00011944,2]
[344552132,1733542251031,-210.15,0.00011944,2]
[344552133,1733542251042,-395.19,0.00011944,2]
[344552134,1733542251051,-500.0,0.00011944,2]
[344552135,1733542251061,-500.0,0.00011944,2]
[344552136,1733542251072,-732.91,0.00011944,2]
[344552137,1733542251081,-2130.76,0.00011944,2]